bitfinex/quotes_ETHUSD_20240811
["timestamp","ask_amount","ask_price","bid_price","bid_amount"]
[1723414229358,0.4019,2572.1,2570.4,3.89039]
[1723414229573,3.88857,2571.7,2570.8,3.8897]
[1723414229796,0.656194,2572.0,2570.6,3.84011]
[1723414230005,3.88865,2571.6,2570.6,3.84011]
[1723414230154,3.88908,2571.3,2570.5,3.89028]
[1723414230515,3.88827,2571.9,2570.2,2.327]
[1723414230813,3.88805,2572.0,2570.4,3.89034]
[1723414230956,3.88882,2571.5,2570.6,3.89009]
[1723414231156,3.88858,2571.7,2570.4,3.89035]
[1723414231393,2.491,2571.3,2569.7,2.4099]
[1723414231703,2.491,2571.3,2568.8,0.1]
[1723414231704,3.89169,2569.6,2569.4,0.1275695]
[1723414231869,3.8918,2569.5,2569.4,0.1275695]
[1723414232219,3.8918,2569.5,2567.8,2.4099]
[1723414232220,21.09432967,2569.5,2567.8,2.4099]
[1723414232362,21.09432967,2569.5,2567.1,3.919]
[1723414232363,11.67723,2569.1,2569.0,9.5e-06]
[1723414232565,7.84460919,2569.1,2569.0,9.5e-06]
[1723414232755,10.84460919,2569.1,2569.0,9.5e-06]
[1723414233061,15.1331396,2569.1,2569.0,9.5e-06]
[1723414233255,10.84460919,2569.1,2569.0,9.5e-06]
[1723414233691,7.84460919,2569.1,2569.0,9.5e-06]
[1723414233870,0.05978919,2569.1,2569.0,9.5e-06]
[1723414234078,0.05978919,2569.1,2569.0,3.8925695]
[1723414234290,3.89138,2569.8,2569.0,9.5e-06]
[1723414234503,3.89152,2569.7,2569.0,3.8925695]
[1723414234727,0.05888731,2569.7,2569.4,3.89195]
[1723414235006,0.05888731,2569.7,2569.1,2.81449519]
[1723414235007,0.05888731,2569.7,2569.1,2.73665695]
[1723414235217,3.95047732,2569.6,2569.1,2.3474]
[1723414235509,3.89241,2569.1,2569.0,9.5e-06]
[1723414235661,7.78482,2569.1,2569.0,9.5e-06]
[1723414235864,7.84288502,2569.1,2569.0,9.5e-06]
[1723414236119,14.73529502,2569.1,2569.0,9.5e-06]
[1723414236267,10.84288502,2569.1,2569.0,9.5e-06]
[1723414236472,11.92717352,2569.1,2569.0,9.5e-06]
[1723414237114,0.05806502,2569.1,2569.0,3.8925695]
[1723414237266,0.05806502,2569.1,2569.0,9.5e-06]
[1723414237469,1.559326,2570.9,2569.1,2.2594]
[1723414237668,3.88999,2570.7,2569.8,3.89135]
[1723414237985,3.89061,2570.3,2569.6,3.89164]
[1723414238292,3.88903,2571.4,2570.0,2.2594]
[1723414238293,3.88897,2571.4,2570.0,2.2594]
[1723414238520,3.88974,2570.9,2570.1,0.22594]
[1723414238819,3.88924,2571.2,2570.5,3.89027]
[1723414238965,3.88931,2571.2,2570.3,3.89055]
[1723414239166,3.88931,2571.2,2570.0,2.2594]
[1723414239167,4.278171,2571.2,2570.0,2.2594]
[1723414239411,4.278171,2571.2,2569.6,3.89164]
[1723414239707,4.278171,2571.2,2569.5,2.2594]
[1723414239708,3.88984,2570.8,2570.1,3.89074]
[1723414239877,3.8894,2571.1,2570.1,3.89074]
[1723414239878,3.88956,2571.0,2570.2,3.89071]
[1723414240061,3.88984,2570.8,2570.0,3.89098]
[1723414240267,3.8896,2571.0,2569.5,2.2594]
[1723414240519,3.88843,2571.8,2570.2,3.89061]
[1723414240680,3.88908,2571.3,2570.6,3.89003]
[1723414240889,3.88954,2571.0,2570.4,6.19032]
[1723414241069,6.0922,2571.9,2570.4,6.19032]
[1723414241295,6.0922,2571.9,2569.7,3.0]
[1723414241296,3.88984,2570.8,2570.1,3.89078]
[1723414241521,3.88898,2571.4,2570.2,0.07781446]
[1723414241722,0.388896,2571.3,2570.0,0.07780324]
[1723414242019,3.88954,2571.0,2570.2,3.89067]
[1723414242335,3.88927,2571.2,2570.5,3.89018]
[1723414242546,3.88927,2571.2,2570.6,3.89014]
[1723414242691,3.60922,2571.8,2570.2,3.89071]
[1723414243029,3.88995,2570.8,2570.0,4.51792835]
[1723414243188,3.88957,2571.0,2570.2,3.89061]
[1723414243391,3.60922,2571.8,2570.4,2.2999]
[1723414243593,4.49761,2571.8,2570.9,3.88958]
[1723414243802,3.88802,2572.0,2571.3,3.88907]
[1723414244001,3.88802,2572.0,2571.3,6.20147]
[1723414244233,3.88742,2572.4,2571.5,3.88867]
[1723414244421,3.88742,2572.4,2571.7,3.88832]
[1723414244615,3.88716,2572.6,2571.9,3.88805]
[1723414244817,3.88681,2572.8,2571.8,0.07776282]
[1723414245020,0.636169,2573.1,2572.4,3.88733]
[1723414245195,3.88631,2573.2,2572.4,3.88733]
[1723414245534,3.88631,2573.2,2572.3,3.88754]
[1723414245535,3.88624,2573.2,2572.3,3.88754]
[1723414245832,3.88624,2573.2,2571.4,0.62014]
[1723414245833,3.88771,2572.3,2571.4,3.88893]
[1723414246037,3.88771,2572.3,2571.2,2.3124]
[1723414246038,3.88754,2572.4,2571.6,3.88857]
[1723414246352,2.4756,2573.3,2572.0,3.88787]
[1723414246492,3.88626,2573.2,2572.5,3.88726]
[1723414246820,4.21004834,2573.6,2572.3,3.96527521]
[1723414246993,3.88652,2573.0,2572.1,3.88784]
[1723414247197,3.88683,2572.8,2571.8,2.3124]
[1723414247393,1.17155883,2573.5,2571.8,6.20072]
[1723414247622,3.88748,2572.4,2571.8,2.3124]
[1723414247827,3.88684,2572.8,2572.2,3.88771]
[1723414248127,3.0,2573.3,2572.2,3.88771]
[1723414248128,3.88653,2573.0,2572.2,3.88771]
[1723414248340,0.777277,2573.0,2572.4,3.88731]
[1723414248503,3.88624,2573.2,2572.5,3.88726]
[1723414248831,3.88624,2573.2,2571.8,2.3124]
[1723414248832,3.9250838,2573.1,2572.4,3.88741]
[1723414249036,3.9250838,2573.1,2572.2,3.88768]
[1723414249204,0.39250838,2573.0,2572.4,3.88737]
[1723414249542,4.31836129,2573.0,2572.1,3.88787]
[1723414249833,0.03929291,2573.0,2571.8,2.3124]
[1723414250149,3.88812,2572.0,2571.3,2.2751]
[1723414250296,0.388812,2571.9,2571.3,2.2751]
[1723414250494,3.92668635,2571.9,2571.3,2.2751]
[1723414251002,0.03843635,2571.9,2571.8,7.77664]
[1723414251236,3.88643,2573.1,2572.1,3.88782]
[1723414251450,0.388637,2573.0,2572.3,3.88754]
[1723414251592,3.88574,2573.6,2572.5,3.88725]
[1723414251794,3.88559,2573.7,2572.9,3.88661]
[1723414252031,3.88561,2573.6,2572.9,3.88661]
[1723414252338,4.274049,2573.7,2572.8,0.07772721]
[1723414252494,3.88578,2573.5,2572.9,3.88654]
[1723414252694,3.88578,2573.5,2572.8,0.07772721]
[1723414252695,3.88592,2573.4,2572.8,0.07772721]
[1723414252898,3.88578,2573.5,2572.6,6.16215]
[1723414252899,3.88612,2573.3,2572.6,6.16215]
[1723414253193,3.88612,2573.3,2572.5,3.88725]
[1723414253194,3.88677,2572.9,2572.1,6.33676]
[1723414253395,0.388578,2573.5,2572.2,0.07774686]
[1723414253622,3.88619,2573.3,2572.5,3.88716]
[1723414253794,2.4892,2574.1,2572.1,2.449]
[1723414253795,2.4892,2574.1,2572.6,0.07773626]
[1723414254005,2.4892,2574.1,2572.1,2.449]
[1723414254006,3.88593,2573.4,2572.7,3.88691]
[1723414254205,3.88593,2573.4,2572.1,6.33678]
[1723414254206,3.88547,2573.7,2572.9,3.88652]
[1723414254394,3.88547,2573.7,2573.0,3.88651]
[1723414254800,0.24892,2574.0,2573.5,3.88575]
[1723414255139,3.88347,2575.1,2572.6,3.88703]
[1723414255140,3.884,2574.7,2573.7,3.88533]
[1723414255297,3.88509,2574.0,2573.6,2.4034]
[1723414255646,3.88562,2573.6,2572.9,2.4034]
[1723414255936,3.88592,2573.4,2572.9,2.4034]
[1723414256141,3.88562,2573.6,2572.9,6.29004]
[1723414256352,3.98491,2574.1,2572.4,2.485]
[1723414256651,3.98491,2574.1,2572.5,3.88722]
[1723414256652,3.88637,2573.1,2572.5,3.88722]
[1723414256876,3.88572,2573.6,2572.4,2.485]
[1723414257033,3.88572,2573.6,2571.3,3.88893]
[1723414257034,3.88773,2572.2,2571.3,3.88898]
[1723414257235,2.3728,2572.7,2571.3,3.88898]
[1723414257418,3.938572,2573.5,2571.6,2.485]
[1723414257419,0.388572,2573.5,2571.6,2.485]
[1723414257614,2.3728,2573.6,2572.8,3.8868]
[1723414257615,3.88572,2573.6,2572.8,3.8868]
[1723414257947,4.283561,2574.0,2573.2,3.88606]
[1723414257948,0.398491,2574.0,2573.2,3.88606]
[1723414258263,0.398491,2574.0,2573.1,2.485]
[1723414258416,3.88585,2573.5,2573.1,2.485]
[1723414258620,3.88585,2573.5,2572.8,3.88671]
[1723414258848,3.88551,2573.7,2573.0,3.88636]
[1723414259012,0.01341876,2574.7,2573.0,3.88636]
[1723414259013,2.38621876,2575.0,2573.6,2.485]
[1723414259213,3.88499,2574.1,2573.6,2.485]
[1723414259545,3.88556,2573.7,2573.2,2.485]
[1723414259748,3.88521,2573.9,2572.7,2.485]
[1723414260030,3.88623,2573.2,2572.7,2.485]
[1723414260176,3.88636,2573.1,2572.7,2.485]
[1723414260336,3.88652,2573.0,2572.2,2.485]
[1723414260541,3.88522,2573.9,2572.2,2.7335]
[1723414260542,3.0,2573.9,2572.2,2.7335]
[1723414260739,3.88737,2572.5,2572.2,2.485]
[1723414260978,3.88727,2572.5,2571.8,6.37332]
[1723414261166,2.3728,2573.0,2571.8,2.485]
[1723414261362,3.88815,2572.0,2571.3,2.485]
[1723414261549,2.3728,2573.0,2571.3,2.485]
[1723414261550,3.88791,2572.1,2571.3,10.26299]
[1723414261750,3.88802,2572.0,2571.4,0.2485]
[1723414262079,3.88832,2571.9,2571.4,0.2485]
[1723414262381,3.88722,2572.6,2571.9,3.88806]
[1723414262679,3.88722,2572.6,2571.5,0.07777255]
[1723414262680,3.88722,2572.6,2571.8,3.88819]
[1723414262874,3.88722,2572.6,2571.6,3.88856]
[1723414262875,3.88773,2572.2,2571.6,3.88851]
[1723414263076,3.88754,2572.4,2571.6,3.96632326]
[1723414263278,3.88759,2572.3,2571.6,3.96632326]
[1723414263593,3.88754,2572.4,2571.7,3.8884]
[1723414263775,3.88723,2572.6,2571.9,2.485]
[1723414264098,0.355,2573.7,2572.0,2.56275562]
[1723414264292,3.88571,2573.6,2572.9,3.88653]
[1723414264468,3.88571,2573.6,2573.0,2.56272227]
[1723414264469,0.0350335,2573.6,2573.0,2.56272227]
[1723414264786,3.88531,2573.8,2573.1,3.88623]
[1723414264948,3.88511,2574.0,2573.1,0.07771655]
[1723414265151,3.88582,2573.5,2573.0,2.485]
[1723414265570,3.88534,2573.8,2573.0,2.485]
[1723414265772,0.388513,2573.9,2572.6,2.257]
[1723414265773,3.88622,2573.2,2572.6,2.257]
[1723414265971,3.88597,2573.4,2572.6,2.257]
[1723414266174,3.88597,2573.4,2572.7,3.88685]
[1723414266487,3.88576,2573.5,2572.6,6.14397]
[1723414266689,3.88641,2573.1,2572.6,2.257]
[1723414267100,2.3855,2573.6,2572.1,2.4561]
[1723414267264,2.3855,2573.6,2570.8,0.70909888]
[1723414267265,3.88787,2572.1,2571.6,2.315]
[1723414267587,3.88763,2572.3,2571.4,3.88883]
[1723414267787,3.88805,2572.0,2571.4,3.88887]
[1723414268088,3.88805,2572.0,2570.4,8.41943696]
[1723414268089,2.4243,2573.2,2571.9,2.315]
[1723414268289,2.4243,2573.7,2572.0,3.96569286]
[1723414268592,3.88631,2573.2,2571.9,2.315]
[1723414268802,3.88788,2572.1,2571.4,3.88886]
[1723414268953,3.88788,2572.1,2571.5,2.315]
[1723414269290,3.88859,2571.7,2571.1,2.315]
[1723414269466,3.88715,2572.6,2570.5,7.0471737]
[1723414269467,2.4243,2571.9,2570.5,7.0471737]
[1723414269809,3.88969,2570.9,2570.5,2.315]
[1723414270088,3.88969,2570.9,2570.1,6.20585]
[1723414270253,3.8901,2570.7,2570.1,2.704085]
[1723414270589,3.89016,2570.6,2569.9,3.89118]
[1723414270801,3.8885,2571.7,2570.6,3.89009]
[1723414270979,3.8885,2571.7,2570.7,0.0777892]
[1723414271180,3.88788,2572.1,2570.9,6.20466]
[1723414271364,3.88757,2572.3,2571.6,3.88862]
[1723414271568,3.88799,2572.1,2571.3,3.88905]
[1723414271766,0.388799,2572.1,2571.2,3.88922]
[1723414271976,0.388799,2572.1,2570.9,2.315]
[1723414271977,3.88759,2572.3,2571.3,0.07777376]
[1723414272187,3.88763,2572.3,2571.4,3.88886]
[1723414272514,3.88699,2572.7,2571.6,2.3013]
[1723414272693,3.88744,2572.4,2571.6,2.3013]
[1723414272869,3.88772,2572.2,2571.6,6.1899]
[1723414273076,3.88873,2571.6,2571.1,2.3013]
[1723414273380,3.88898,2571.4,2570.6,6.2690864]
[1723414273590,3.88898,2571.4,2570.8,3.88972]
[1723414273802,3.88935,2571.2,2570.6,6.1913]
[1723414274016,2.2856,2571.6,2570.1,2.3013]
[1723414274189,3.88561,2570.3,2569.7,2.3013]
[1723414274724,3.88944,2571.1,2569.7,2.3013]
[1723414274865,3.89073,2570.3,2569.7,2.3013]
[1723414275257,3.89033,2570.5,2569.7,2.3013]
[1723414275557,3.0,2571.3,2570.3,3.89047]
[1723414275758,3.0,2571.3,2570.4,0.07780589]
[1723414275759,3.88914,2571.3,2570.4,0.07780589]
[1723414276078,3.22856,2571.5,2570.5,2.3013]
[1723414276269,0.551416,2571.4,2570.5,2.37910107]
[1723414276474,7.11735,2571.5,2570.6,3.89001]
[1723414276778,0.22856,2571.5,2570.6,3.89012]
[1723414277080,3.88884,2571.5,2570.8,3.88973]
[1723414277280,3.88884,2571.5,2570.6,4.976068]
[1723414277281,3.88854,2571.7,2570.6,1.085978]
[1723414277463,3.88854,2571.7,2571.0,3.88943]
[1723414277664,3.88822,2571.9,2571.2,3.88913]
[1723414277870,3.88822,2571.9,2571.3,3.88906]
[1723414278068,3.88822,2571.9,2571.2,3.88913]
[1723414278069,3.88822,2571.9,2571.2,3.88912]
[1723414278288,3.88882,2571.5,2570.7,3.88994]
[1723414278510,3.88882,2571.5,2570.9,3.88968]
[1723414278670,3.88849,2571.7,2571.0,3.88938]
[1723414278903,3.88849,2571.7,2570.8,0.46678372]
[1723414278904,3.88849,2571.7,2570.8,0.07778227]
[1723414279129,7.77779,2571.5,2570.8,3.88973]
[1723414279307,3.88883,2571.5,2570.5,2.3013]
[1723414279523,3.88883,2571.5,2570.1,3.89083]
[1723414279524,3.88999,2570.7,2570.1,3.89083]
[1723414279922,3.88999,2570.7,2569.9,3.89119]
[1723414280120,3.89047,2570.4,2569.7,7.78285]
[1723414280339,3.89047,2570.4,2569.4,2.3534]
[1723414280340,3.89086,2570.2,2569.5,4.12711]
[1723414280499,3.8905,2570.4,2569.4,2.3534]
[1723414280704,3.8905,2570.4,2569.7,3.89136]
[1723414280904,3.88986,2570.8,2569.8,0.07782589]
[1723414281136,5.2934,2571.0,2570.4,3.89033]
[1723414281137,3.88956,2571.0,2570.4,3.89033]
[1723414281301,0.777884,2571.0,2569.7,2.2745]
[1723414281499,3.89069,2570.3,2569.7,2.2745]
[1723414281739,3.89047,2570.4,2569.7,2.2745]
[1723414282107,3.89001,2570.7,2569.8,0.07782376]
[1723414282444,3.88995,2570.8,2570.1,3.8908]
[1723414282694,12.28,2571.7,2569.7,2.2745]
[1723414282695,3.88934,2571.2,2570.6,3.89004]
[1723414283058,3.88899,2571.4,2570.6,3.89006]
[1723414283263,3.88943,2571.1,2570.5,2.42360077]
[1723414283459,3.88943,2571.1,2570.5,2.66596085]
[1723414283676,3.88924,2571.2,2570.6,3.89004]
[1723414283852,3.88911,2571.3,2570.6,3.89004]
[1723414284052,3.88911,2571.3,2570.7,3.88984]
[1723414284294,3.88836,2571.8,2571.1,2.4129]
[1723414284444,7.27,2572.1,2571.1,6.30219]
[1723414284445,3.88853,2571.7,2571.1,6.30219]
[1723414284644,3.88869,2571.6,2571.1,2.4129]
[1723414284843,7.27,2572.1,2571.1,2.4129]
[1723414284844,3.888,2572.1,2571.2,0.07778017]
[1723414285258,3.88875,2571.6,2570.8,3.88974]
[1723414285459,3.88973,2570.9,2570.4,2.3506]
[1723414285660,3.88935,2571.2,2570.0,6.24162]
[1723414285888,0.388935,2571.1,2570.0,2.3506]
[1723414286060,3.89038,2570.5,2570.0,2.3506]
[1723414286294,3.89085,2570.2,2569.6,3.89155]
[1723414286624,3.88947,2571.1,2569.6,3.89155]
[1723414286625,3.23218,2571.1,2569.6,4.98731885]
[1723414286786,3.89061,2570.3,2569.6,4.909495]
[1723414287116,3.89074,2570.3,2569.6,1.017965]
[1723414287320,3.89079,2570.2,2569.6,4.909595]
[1723414287617,3.89025,2570.6,2569.8,3.89125]
[1723414287773,3.89048,2570.4,2569.7,4.6219895]
[1723414288174,3.89015,2570.6,2569.7,4.6220495]
[1723414288486,3.89051,2570.4,2569.5,6.28791]
[1723414288688,3.89086,2570.2,2569.6,3.89155]
[1723414288899,3.89086,2570.2,2569.5,10.17962]
[1723414289089,3.89092,2570.1,2569.5,6.28791]
[1723414289273,3.89052,2570.4,2569.5,3.414194]
[1723414289474,3.88878,2571.5,2569.7,2.2856]
[1723414289696,2.3499,2571.6,2569.3,0.3894]
[1723414289697,2.3499,2571.6,2570.5,2.2856]
[1723414289897,3.89055,2570.4,2570.0,2.2856]
[1723414290118,3.8913,2569.9,2569.2,3.89223]
[1723414290411,3.89095,2570.1,2569.2,3.89212]
[1723414290616,3.89063,2570.3,2569.6,3.89155]
[1723414290825,3.89088,2570.2,2569.6,3.89155]
[1723414291122,3.89063,2570.3,2569.7,3.89149]
[1723414291272,3.89025,2570.6,2570.0,3.89094]
[1723414291472,3.88994,2570.8,2570.2,3.89074]
[1723414291717,3.88943,2571.1,2570.0,3.89094]
[1723414291917,3.88943,2571.1,2569.9,2.3438]
[1723414291918,3.614881,2571.2,2569.9,2.3438]
[1723414292086,3.89072,2570.3,2569.9,2.3438]
[1723414292272,3.8907,2570.3,2569.7,4.669764]
[1723414292475,3.88969,2570.9,2570.3,3.89059]
[1723414292676,3.88984,2570.8,2570.2,2.3438]
[1723414292902,3.89,2570.7,2570.2,2.3438]
[1723414293101,3.88969,2570.9,2570.2,6.86575211]
[1723414293272,3.88969,2570.9,2570.3,3.8905]
[1723414293473,3.88969,2570.9,2570.2,6.86575211]
[1723414293724,7.7784,2571.3,2570.7,3.88988]
[1723414293903,4.12385,2571.5,2570.7,3.88988]
[1723414294106,4.12385,2571.5,2570.9,3.88963]
[1723414294107,3.88886,2571.5,2570.9,3.88963]
[1723414294330,3.88855,2571.7,2570.9,3.96742255]
[1723414294479,4.277375,2571.7,2570.8,2.2752]
[1723414294679,3.88933,2571.2,2570.8,2.2752]
[1723414294877,0.388855,2571.7,2570.3,2.3776]
[1723414294878,3.88984,2570.8,2570.3,2.3776]
[1723414295089,3.88999,2570.7,2570.3,2.3776]
[1723414295318,2.2666,2571.4,2570.3,2.3776]
[1723414295620,2.2666,2571.4,2569.8,2.3776]
[1723414295621,3.89052,2570.4,2569.8,2.3776]
[1723414295804,3.89083,2570.2,2569.4,3.8919]
[1723414296118,3.89136,2569.8,2569.3,3.89202]
[1723414296277,3.89118,2570.0,2569.1,6.32677]
[1723414296482,4.13373,2570.5,2569.6,3.89151]
[1723414296483,3.89086,2570.2,2569.6,3.89151]
[1723414296804,3.89086,2570.2,2569.2,0.07783957]
[1723414296805,3.89106,2570.0,2569.5,3.89179]
[1723414297003,3.89086,2570.2,2569.4,3.89183]
[1723414297223,3.89108,2570.0,2569.4,3.89183]
[1723414297580,3.89145,2569.8,2569.2,3.89218]
[1723414297736,3.89068,2570.3,2569.2,0.71099607]
[1723414298034,3.89051,2570.4,2569.8,3.89134]
[1723414298186,3.89051,2570.4,2569.6,3.89156]
[1723414298383,3.89085,2570.2,2569.6,3.89156]
[1723414298603,3.89085,2570.2,2569.6,3.89155]
[1723414298830,0.24339,2570.5,2569.5,3.89176]
[1723414299122,0.24339,2570.5,2569.2,0.63315895]
[1723414299123,3.8916,2569.7,2569.2,0.63315895]
[1723414299325,3.8916,2569.7,2569.1,2.4344]
[1723414299631,3.89194,2569.5,2569.1,2.4344]
[1723414299787,7.78385,2569.5,2569.1,2.4344]
[1723414299987,3.89191,2569.5,2569.1,2.4344]
[1723414300189,7.78482,2569.1,2569.0,0.0050095]
[1723414301028,11.67723,2569.1,2569.0,0.0050095]
[1723414301234,17.89904,2569.1,2569.0,0.0050095]
[1723414301646,17.89904,2569.1,2569.0,9.5e-06]
[1723414301647,20.89904,2569.1,2569.0,9.5e-06]
[1723414301847,23.928177,2569.1,2569.0,9.5e-06]
[1723414302015,12.250947,2569.1,2567.4,2.3606]
[1723414302218,3.89338,2568.5,2567.0,2.3606]
[1723414302448,3.89447,2567.8,2567.1,3.89534]
[1723414302645,3.89447,2567.8,2567.1,3.8954]
[1723414302938,3.89447,2567.8,2567.0,3.89548]
[1723414302939,3.8931,2568.7,2567.2,0.07790645]
[1723414303306,3.8938,2568.2,2567.5,3.89471]
[1723414303507,3.89324,2568.6,2567.6,2.3606]
[1723414303859,3.89263,2569.0,2568.1,3.89378]
[1723414304003,3.89281,2568.9,2568.2,3.89367]
[1723414304205,2.3475,2569.0,2567.9,0.07787557]
[1723414304553,2.3475,2569.0,2567.6,6.25525]
[1723414304554,3.89348,2568.4,2567.6,6.25525]
[1723414304767,3.89393,2568.1,2567.6,2.3606]
[1723414304920,0.23475,2568.9,2567.2,2.3606]
[1723414304921,3.89356,2568.4,2567.2,2.3606]
[1723414305121,0.23475,2568.9,2568.2,3.89368]
[1723414305328,3.89229,2569.2,2568.5,3.89329]
[1723414305649,3.89243,2569.1,2568.4,3.89333]
[1723414305820,3.89272,2568.9,2568.2,3.89366]
[1723414306160,2.3475,2569.4,2567.9,3.89414]
[1723414306161,3.89326,2568.6,2567.9,3.89414]
[1723414306320,3.89369,2568.3,2567.7,2.3606]
[1723414306511,3.89338,2568.5,2567.7,2.3606]
[1723414306712,3.89313,2568.7,2568.1,3.89381]
[1723414307026,3.89313,2568.7,2567.9,3.89412]
[1723414307248,0.389313,2568.7,2567.5,3.89472]
[1723414307561,0.389313,2568.7,2567.3,2.59666]
[1723414307562,3.89402,2568.1,2567.4,3.89487]
[1723414307722,3.89402,2568.1,2567.5,3.89482]
[1723414307924,3.89427,2567.9,2567.3,6.25562]
[1723414308247,3.89454,2567.7,2567.1,3.89539]
[1723414308423,3.89503,2567.4,2566.7,4.0236195]
[1723414308747,4.284583,2567.4,2566.7,0.1275695]
[1723414308964,3.89447,2567.8,2567.1,3.89534]
[1723414309166,2.3841,2567.9,2566.9,3.89561]
[1723414309167,3.89487,2567.5,2566.9,3.89561]
[1723414309374,3.89487,2567.5,2566.7,0.1275695]
[1723414309579,3.89457,2567.7,2567.0,3.89558]
[1723414309860,3.89457,2567.7,2567.0,3.89548]
[1723414310085,3.89427,2567.9,2566.7,0.1275695]
[1723414310224,9.2776,2568.4,2566.7,0.1275695]
[1723414310225,3.8937,2568.3,2567.3,3.89501]
[1723414310425,0.92776,2568.3,2567.1,3.89536]
[1723414310626,3.89414,2568.0,2566.8,2.3367]
[1723414310831,3.8951,2567.4,2566.8,2.3367]
[1723414311031,3.89514,2567.3,2566.8,2.3367]
[1723414311268,3.89494,2567.5,2566.9,3.89569]
[1723414311779,3.89461,2567.7,2567.0,3.8955]
[1723414311947,3.89405,2568.1,2567.3,3.89512]
[1723414312275,7.78808,2568.1,2567.3,3.89502]
[1723414312433,3.89418,2568.0,2567.3,3.89502]
[1723414312629,4.283445,2568.1,2567.2,3.89524]
[1723414312827,4.283445,2568.1,2567.4,3.89485]
[1723414313058,8.177495,2568.1,2567.4,3.89485]
[1723414313270,2.41493497,2570.9,2567.3,0.07790273]
[1723414313271,0.1,2569.4,2567.3,0.07790273]
[1723414313478,3.89372,2568.3,2567.6,3.89454]
[1723414313768,7.78738,2568.3,2567.7,3.89452]
[1723414313973,3.89392,2568.1,2567.5,3.89474]
[1723414314177,3.89365,2568.3,2567.2,3.89525]
[1723414314331,2.35,2569.0,2567.7,2.4517]
[1723414314534,3.89335,2568.5,2567.7,2.4517]
[1723414314855,2.35,2569.0,2567.7,2.4517]
[1723414314856,3.89312,2568.7,2567.7,2.4517]
[1723414315054,3.89312,2568.7,2567.8,0.64242281]
[1723414315255,3.89312,2568.7,2568.0,3.89407]
[1723414315256,7.78625,2568.7,2568.0,3.89407]
[1723414315432,3.89315,2568.7,2567.7,6.34619]
[1723414315636,3.89273,2568.9,2567.4,3.89487]
[1723414315841,3.89433,2567.9,2567.3,2.4517]
[1723414316144,0.235,2568.9,2566.7,7.9535895]
[1723414316145,3.89403,2568.1,2567.4,3.89487]
[1723414316383,3.89369,2568.3,2567.4,3.89489]
[1723414316692,7.78745,2568.3,2567.6,3.89468]
[1723414316898,3.89404,2568.1,2567.4,3.89488]
[1723414317072,3.778745,2568.3,2566.8,2.4517]
[1723414317273,3.89521,2567.3,2566.7,4.0235295]
[1723414317473,3.89533,2567.2,2566.7,0.1275695]
[1723414317992,3.89477,2567.6,2566.7,0.1275695]
[1723414318195,7.7902,2567.4,2566.7,7.9194295]
[1723414318396,3.89515,2567.3,2566.7,4.0234895]
[1723414318583,3.8951,2567.4,2566.7,7.9194195]
[1723414318760,0.778986,2567.4,2566.7,0.1275695]
[1723414318959,3.8953,2567.2,2566.7,0.1275695]
[1723414319162,3.89505,2567.4,2566.7,0.1275695]
[1723414319385,0.235,2567.7,2566.7,0.1275695]
[1723414319386,3.89542,2567.2,2566.7,0.1275695]
[1723414319891,3.89539,2567.2,2566.7,0.1275695]
[1723414320120,3.89505,2567.4,2566.7,0.1275695]
[1723414320410,3.89533,2567.2,2566.8,2.4814]
[1723414320705,3.89563,2567.0,2566.7,0.1275695]
[1723414321413,3.89506,2567.4,2566.7,0.1275695]
[1723414321620,0.235,2567.7,2566.9,3.89572]
[1723414321767,3.89478,2567.6,2566.9,3.89564]
[1723414321972,3.89478,2567.6,2567.0,3.89547]
[1723414322280,3.89446,2567.8,2567.1,3.89539]
[1723414322281,3.89463,2567.7,2567.1,3.89539]
[1723414322480,3.89463,2567.7,2566.9,3.89563]
[1723414322668,0.389446,2567.8,2567.1,3.8954]
[1723414322868,3.89401,2568.1,2567.5,3.89477]
[1723414323306,3.89401,2568.1,2567.3,3.89505]
[1723414323307,3.89423,2567.9,2567.3,3.89505]
[1723414323510,2.3277,2568.6,2567.3,3.89505]
[1723414323511,0.61011367,2569.0,2567.4,2.3341]
[1723414323669,0.61011367,2569.0,2567.6,2.3341]
[1723414323876,3.89343,2568.5,2567.9,3.89413]
[1723414324224,3.89343,2568.5,2567.7,3.89441]
[1723414324225,3.89356,2568.4,2567.7,3.89441]
[1723414324395,6.29641,2569.2,2568.1,3.8939]
[1723414324603,3.89306,2568.7,2568.0,3.89395]
[1723414324809,3.89306,2568.7,2568.1,3.8939]
[1723414324996,3.89267,2569.0,2568.1,3.89385]
[1723414325176,3.89267,2569.0,2568.3,3.89353]
[1723414325375,0.629641,2569.2,2568.2,2.348]
[1723414325376,4.521971,2569.2,2568.2,2.348]
[1723414325580,3.89203,2569.4,2568.8,3.89277]
[1723414325816,3.89191,2569.5,2568.7,3.89292]
[1723414326076,2.4192,2570.1,2568.3,3.97144945]
[1723414326077,2.4192,2570.1,2569.2,3.89214]
[1723414326322,3.89096,2570.1,2569.3,3.8921]
[1723414326530,2.4192,2570.6,2569.4,2.348]
[1723414326676,3.88996,2570.8,2570.1,3.89088]
[1723414326878,3.8901,2570.7,2569.9,3.89109]
[1723414327077,3.89015,2570.6,2569.9,3.89109]
[1723414327317,3.8899,2570.8,2570.1,3.89088]
[1723414327544,1.11587,2571.5,2570.4,3.89031]
[1723414327819,3.88939,2571.1,2570.3,3.89049]
[1723414328122,0.1,2572.2,2570.3,3.89049]
[1723414328123,3.88895,2571.4,2570.3,0.07780801]
[1723414328326,3.88895,2571.4,2570.7,3.88989]
[1723414328622,3.88867,2571.6,2570.7,3.88989]
[1723414328773,3.88867,2571.6,2570.9,3.88966]